Cogmind - Beta 17 @@@ ROGUE MODE // 2026.08.11 @ 18:44:09 Player: GogoFox Result: Destroyed by Z-Imprinter with Zionite Laser-M Performance ------------- Evolutions (1) 500 Regions Visited (6) 1200 Robots Destroyed (28) 140 Value Destroyed (620) 620 Prototype IDs (2) 40 Alien Tech Used (0) 0 Bonus (660) 660 TOTAL SCORE: 3160 Bonus ------- Follower Combat Kills 60 Met Imprinter 300 Was Imprinted 300 Cogmind --------- Core Integrity 0/400 Matter 300/300 Energy 56/100 System Corruption 0% Temperature Cool (45) Movement Core (50) Location -7/Deep Caves Parts ------- > --- POWER (1) -------- (None) > --- PROPULSION (2) --- (None) > --- UTILITY (4) ------ Visual Processing Unit > --- WEAPON (2) ------- (None) > --- INVENTORY (5) ---- Improved Sensor Array 0b10 Decoder Chip [Generic] Hacking Drone Bay (1/1) Beamcaster Heavy Beamcaster Peak State ------------ > --- POWER ------------ Light Deuterium Engine > --- PROPULSION ------- Airjet Airjet > --- UTILITY ---------- Medium Storage Unit Visual Processing Unit Hacking Suite Hacking Drone Bay > --- WEAPON ----------- Beamcaster Heavy Beamcaster > --- INVENTORY -------- Light Deuterium Engine Light Deuterium Engine Airjet Weight Redist. System 0b10 Decoder Chip [Generic] Core Shielding Thief Drone Bay Spread Laser Improved Light Cannon Mini Grenade Launcher [Rating: 38] Favorites ----------- Power Light Deuterium Engine Engine Light Deuterium Engine Propulsion Airjet Leg Aluminum Leg Hover Unit Airjet Flight Unit Cesium-ion Thruster Utility Medium Storage Unit Device Hacking Drone Bay Storage Medium Storage Unit Processor Visual Processing Unit Hackware Hacking Suite Protection Core Shielding Weapon Spread Laser Energy Gun Spread Laser Energy Cannon Beam Cannon Ballistic Gun Light Assault Rifle Launcher Mini Grenade Launcher Special Weapon Mining Laser Build | -11 -10 -10 -9 -9 -7 -7 ------- Run | Yrd Mat Min Mat Min Zio Dee Slots Evolved 2 | . . . 2 . . . Power . | . . . . . . . Propulsion . | . . . . . . . Utility 2 | . . . 2 . . . Weapon . | . . . . . . . Parts Attached 43 | 6 7 7 15 1 4 3 Power 6 | 1 1 1 2 . 1 . Engine 6 | 1 1 1 2 . 1 . Core . | . . . . . . . Reactor . | . . . . . . . Propulsion 11 | 2 1 2 5 . . 1 Treads . | . . . . . . . Leg 6 | 2 1 2 1 . . . Wheel . | . . . . . . . Hover 4 | . . . 4 . . . Flight 1 | . . . . . . 1 Utility 9 | 1 2 2 1 1 1 1 Device 3 | . . 1 . 1 1 . Storage 2 | 1 1 . . . . . Processor 2 | . 1 1 . . . . Hackware 1 | . . . 1 . . . Protection 1 | . . . . . . 1 Artifact . | . . . . . . . Weapon 17 | 2 3 2 7 . 2 1 Energy Gun 7 | . . . 5 . 2 . Energy Cannon 1 | . . . 1 . . . Ballistic Gun 6 | 2 2 1 . . . 1 Ballistic Cannon . | . . . . . . . Launcher 2 | . 1 . 1 . . . Special Weapon 1 | . . 1 . . . . Impact Weapon . | . . . . . . . Slashing Weapon . | . . . . . . . Piercing Weapon . | . . . . . . . Special Melee Weapon . | . . . . . . . Unidentified Prototypes 2 | . . 1 . . 1 . Parts Lost 17 | . 1 6 1 . . 9 Power 3 | . . 2 . . . 1 Propulsion 7 | . 1 1 1 . . 4 Utility 2 | . . . . . . 2 Weapon 5 | . . 3 . . . 2 Highest Loss Streak 9 | . 1 3 1 . . 9 To Critical Strikes . | . . . . . . . Average Backups 8 | . 7 7 8 7 9 9 Power 1 | . . . 1 2 1 . Propulsion 1 | . 1 1 1 . 1 1 Utility 2 | . 1 3 1 2 3 4 Weapon 2 | . 3 2 3 2 3 2 Tool/Special . | . . . . . . . Unused Backups 14 | . . 2 4 2 3 3 Power 4 | . . . 1 2 . 1 Propulsion 2 | . . 1 1 . . . Utility 4 | . . . 1 . 1 2 Weapon 4 | . . 1 1 . 2 . Tool/Special . | . . . . . . . Average Slot Usage (%) 98 | . 99 94 97 100 99 92 Engine 11 | . 14 9 10 11 11 9 Leg 9 | . 27 27 7 . . . Hover 13 | . . . 14 22 22 18 Device 8 | . . 4 10 15 11 10 Storage 12 | . 19 14 11 6 11 10 Processor 10 | . 7 9 11 11 11 11 Hackware 7 | . . . 11 11 11 10 Energy Gun 13 | . . . 17 19 21 7 Ballistic Gun 8 | . 27 24 . . . 6 Peak Build Rating 38 | 6 8 14 28 28 38 38 Average Rating 22 | 4 7 10 24 25 33 26 On Entrance 15 | . 6 8 7 27 23 38 Avg Prop Armor Cover (%) 13 | . . . . . . 13 Naked Turns . | . . . . . . . Heaviest Build 27 | 7 17 19 27 25 26 26 Greatest Support 22 | 20 20 20 20 22 22 22 Greatest Overweight (x) 3 | . . 1 3 1 1 1 Average Overweight (x) . | . . . . . . . Largest Inventory Capacity 10 | 5 10 10 10 10 10 10 Average Capacity 9 | 5 9 10 10 7 10 9 Most Carried 10 | 3 10 10 10 10 10 10 Average Carried 8 | . 7 8 9 6 9 9 Final Capacity 10 | 5 10 10 10 10 10 5 Final Carried 10 | 1 10 10 8 10 10 5 Class Distribution -------------------- 73% | Mutant 26% | Scavenger-Mutant Dominant Class ---------------- Scavenger-Mutant | -10/Materials Scavenger-Mutant | -10/Mines Mutant | -9/Materials Mutant | -9/Mines Mutant | -7/Zion Mutant | -7/Deep Caves Resources | -11 -10 -10 -9 -9 -7 -7 ----------- Run | Yrd Mat Min Mat Min Zio Dee Matter Collected 886 | 316 142 124 165 60 40 39 Remotely . | . . . . . . . Salvage Created 722 | 70 238 238 73 64 . 39 Parts 44 | 3 23 10 1 7 . . Haulers Intercepted . | . . . . . . . Recyclers Shooed 1 | . 1 . . . . . Parts Field Recycled . | . . . . . . . Retrieved Matter . | . . . . . . . Parts Self-Destructed . | . . . . . . . Prevented . | . . . . . . . Parts Restored . | . . . . . . . Kills | -11 -10 -10 -9 -9 -7 -7 ------- Run | Yrd Mat Min Mat Min Zio Dee Combat Hostiles Destroyed 27 | 1 11 6 2 5 . 2 Guns 20 | 1 8 5 2 2 . 2 Cannons 1 | . . 1 . . . . AOE 6 | . 3 . . 3 . . Classes Destroyed 6 | 2 3 . . . . 1 Worker 1 | 1 . . . . . . Operator 1 | . 1 . . . . . Watcher 1 | . 1 . . . . . Swarmer 13 | . 9 . . 4 . . Grunt 12 | 1 2 6 2 1 . . Assembled 2 | . . . . . . 2 Best Kill Streak 5 | 1 5 2 2 4 . 2 Combat Bots Only 5 | 1 5 2 2 4 . 2 Max Kills in Single Turn 3 | 1 2 1 1 3 . 1 Gunslinging . | . . . . . . . Exploded 3 | . 2 . . 3 . . Melee . | . . . . . . . Uniques/NPCs Destroyed . | . . . . . . . Combat | -11 -10 -10 -9 -9 -7 -7 -------- Run | Yrd Mat Min Mat Min Zio Dee Hostile Shots Fired 193 | 6 60 46 16 7 . 58 Missed 59 | 1 13 8 7 2 . 28 Hits 134 | 5 47 38 9 5 . 30 Melee 1 | . . . . 1 . . Projectile 133 | 5 47 38 9 4 . 30 Critical Strikes 3 | . 1 2 . . . . Damage Taken 2123 | 53 421 530 117 69 . 933 Core 598 | 12 76 87 23 49 . 351 Absorbed by Shields . | . . . . . . . Redirected to Shielding 52 | . . . . . . 52 Core Remaining (%) 62 | 95 . 30 . . . . Volleys Fired 86 | 6 36 33 4 4 . 3 Largest 2 | 2 2 2 2 2 . 2 Hottest 156 | 40 50 120 130 130 . 156 Shots Fired 169 | 12 71 66 8 6 . 6 Gun 164 | 12 69 64 8 5 . 6 Cannon . | . . . . . . . Launcher 3 | . 2 . . 1 . . Special 2 | . . 2 . . . . Kinetic 145 | 12 69 64 . . . . Thermal 21 | . . 2 8 5 . 6 Explosive 3 | . 2 . . 1 . . Electromagnetic . | . . . . . . . Robot Hit Streak 14 | 4 5 14 5 6 . 2 Robot Miss Streak 5 | 1 4 4 4 5 . 2 Penetration Max . | . . . . . . . Secondary Targets 3 | . 3 . . . . . Max Gunslinging Chain 1 | . 1 . . . . . Shots Hit Robots 109 | 8 37 49 7 5 . 3 Core Hits 62 | 3 21 17 10 9 . 2 Critical Kills 1 | . . 1 . . . . Critical Parts Destroyed 3 | . 1 2 . . . . Critical Strikes 5 | . 1 3 . . . 1 Burn 1 | . . . . . . 1 Destroy 4 | . 1 3 . . . . Melee Attacks . | . . . . . . . Impact . | . . . . . . . Slashing . | . . . . . . . Piercing . | . . . . . . . Sneak Attacks . | . . . . . . . Combat Hostiles . | . . . . . . . Follow-up Attacks . | . . . . . . . Damage Inflicted 1354 | 69 492 415 87 228 . 63 Guns 950 | 69 317 363 87 51 . 63 Cannons . | . . . . . . . Explosions 352 | . 175 . . 177 . . Melee . | . . . . . . . Ramming 4 | . . 4 . . . . Kinetic 749 | 69 317 363 . . . . Thermal 249 | . . 48 87 51 . 63 Explosive 352 | . 175 . . 177 . . Electromagnetic . | . . . . . . . Impact . | . . . . . . . Slashing . | . . . . . . . Piercing . | . . . . . . . Highest Corruption . | . . . . . . . Average Corruption . | . . . . . . . Corruption Purged . | . . . . . . . Corruption Blocked . | . . . . . . . Overload Shots . | . . . . . . . Overflow Damage 5 | . . . . 5 . . Projectiles . | . . . . . . . Explosions 5 | . . . . 5 . . Melee . | . . . . . . . Knockbacks . | . . . . . . . Impact . | . . . . . . . Kinetic . | . . . . . . . Secondary . | . . . . . . . Self-Inflicted Damage . | . . . . . . . Shots . | . . . . . . . Rammed . | . . . . . . . Targets Rammed 1 | . . 1 . . . . Kicked 1 | . . 1 . . . . Crushed . | . . . . . . . Highest Temperature 268 | 12 22 58 150 75 . 268 Average Temperature 41 | 7 8 15 60 36 . 119 Received Heat Transfer 761 | 30 78 315 51 6 . 281 Siege Activations . | . . . . . . . Martial Activations . | . . . . . . . Shielding Activations . | . . . . . . . Robots Disrupted . | . . . . . . . Combat Hostiles . | . . . . . . . Robots Corrupted . | . . . . . . . Combat Hostiles . | . . . . . . . Parts Fried . | . . . . . . . Impact Corruptions . | . . . . . . . Robots Melted . | . . . . . . . Combat Hostiles . | . . . . . . . Parts Melted . | . . . . . . . Heat Transferred 450 | . . 100 105 60 . 185 Parts Sabotaged . | . . . . . . . Parts Stolen . | . . . . . . . Parts Stripped . | . . . . . . . Power Chain Reactions . | . . . . . . . Alert | -11 -10 -10 -9 -9 -7 -7 ------- Run | Yrd Mat Min Mat Min Zio Dee Maximum Alert Level . | . . . . . . . Low Security (%) 100 | 100 100 100 100 100 . . Level 1 . | . . . . . . . Level 2 . | . . . . . . . Level 3 . | . . . . . . . Level 4 . | . . . . . . . Level 5 . | . . . . . . . High Security . | . . . . . . . Max Security . | . . . . . . . Peak Influence 136 | 10 110 50 65 136 . . Initial 22 | . 6 13 . 22 . . Average 37 | 1 59 14 13 114 . . Influence Increases 807 | 25 278 150 188 166 . . Destroy 0b10 Robot/C 540 | 20 220 120 60 120 . . Destroy 0b10 Robot/NC 20 | 5 10 . 5 . . . Destroy Leader 92 | . 32 30 10 20 . . Allied During Kill 3 | . . . 1 2 . . Trap Triggered on 0b10 10 | . . . 10 . . . Successful Hack 14 | . 2 . 12 . . . Disable Machine 15 | . . . . 15 . . Destroy Structure 23 | . 14 . . 9 . . Lose Combat Pursuer 90 | . . . 90 . . . Influence Decreases 807 | 15 252 186 131 125 98 . Entered New Map 160 | . 4 23 . 35 98 . Time Decay 567 | 15 238 133 111 70 . . Lost Part 40 | . 10 30 . . . . Lost Ally 40 | . . . 20 20 . . Squads Dispatched 2 | . 1 . 1 . . . Investigation 1 | . . . 1 . . . Extermination . | . . . . . . . Reinforcement 1 | . 1 . . . . . Assault . | . . . . . . . Garrison . | . . . . . . . Intercept . | . . . . . . . Searches Triggered . | . . . . . . . Construction Impeded . | . . . . . . . Haulers Reinforced . | . . . . . . . Active Scanning Responses . | . . . . . . . Cargo Convoy Interrupts . | . . . . . . . Stealth | -11 -10 -10 -9 -9 -7 -7 --------- Run | Yrd Mat Min Mat Min Zio Dee Distress Signals . | . . . . . . . Communications Jammed . | . . . . . . . Distress Signals . | . . . . . . . Times Spotted 55 | 1 19 9 8 6 . 12 Peak Tracking Total 12 | 1 4 3 5 4 . 12 Tactical Retreats 4 | . . . 4 . . . Traps | -11 -10 -10 -9 -9 -7 -7 ------- Run | Yrd Mat Min Mat Min Zio Dee Traps Triggered . | . . . . . . . Indirectly . | . . . . . . . Trap Hack Attempts . | . . . . . . . Triggered . | . . . . . . . Disarmed . | . . . . . . . Reprogrammed . | . . . . . . . Reused 1 | . . . 1 . . . Traps Extracted . | . . . . . . . Installed 1 | . . . 1 . . . Triggered 1 | . . . 1 . . . Most Traps Carried 1 | . . 1 1 . . . Machines | -11 -10 -10 -9 -9 -7 -7 ---------- Run | Yrd Mat Min Mat Min Zio Dee Machines Disabled 1 | . . . . 1 . . Max in Single Turn 1 | . . . . 1 . . Machines Repaired . | . . . . . . . Machines Dismantled . | . . . . . . . Machines Sabotaged . | . . . . . . . Overloaded Fab Kills . | . . . . . . . Hacking | -11 -10 -10 -9 -9 -7 -7 --------- Run | Yrd Mat Min Mat Min Zio Dee Machines Accessed 10 | . 4 1 5 . . . Terminals 7 | . 4 . 3 . . . Fabricators . | . . . . . . . Repair Stations . | . . . . . . . Recycling Units 2 | . . . 2 . . . Scanalyzers . | . . . . . . . Garrison Access . | . . . . . . . Total Hacks 26 | . 10 1 15 . . . Successful 13 | . 3 1 9 . . . Failed 12 | . 7 . 5 . . . Catastrophic . | . . . . . . . Database Lockouts 1 | . . . 1 . . . Manual 19 | . 4 . 8 . 7 . Terminals 21 | . 10 . 11 . . . Fabricators . | . . . . . . . Repair Stations . | . . . . . . . Recycling Units 4 | . . . 4 . . . Scanalyzers . | . . . . . . . Garrison Access . | . . . . . . . Terminal Hacks 10 | . 3 1 6 . . . Record 7 | . 3 . 4 . . . Open Door 1 | . . 1 . . . . Emergency Access Points 1 | . . . 1 . . . Registered Prototypes 1 | . . . 1 . . . Fabricator Hacks . | . . . . . . . Repair Station Hacks . | . . . . . . . Recycling Unit Hacks 3 | . . . 3 . . . Report Inventory 2 | . . . 2 . . . Retrieve Components 1 | . . . 1 . . . Scanalyzer . | . . . . . . . Garrison Access Hacks . | . . . . . . . Unauthorized Hacks . | . . . . . . . Terminals . | . . . . . . . Fabricators . | . . . . . . . Repair Stations . | . . . . . . . Recycling Units . | . . . . . . . Scanalyzers . | . . . . . . . Garrison Access . | . . . . . . . Data Cores Recovered . | . . . . . . . Used . | . . . . . . . Hacking Detections 9 | . 4 . 5 . . . Full Trace Events 1 | . . . 1 . . . Feedback Events . | . . . . . . . Feedback Blocked . | . . . . . . . Robot Schematics Acquired . | . . . . . . . Robots Built . | . . . . . . . Authchips . | . . . . . . . Time . | . . . . . . . Total Robot Build Rating . | . . . . . . . Part Schematics Acquired . | . . . . . . . Parts Built . | . . . . . . . Authchips . | . . . . . . . Time . | . . . . . . . Total Part Build Rating . | . . . . . . . Part Studies Acquired . | . . . . . . . Parts Repaired . | . . . . . . . Time . | . . . . . . . Parts Recycled . | . . . . . . . Recycled Matter . | . . . . . . . Retrieved Matter . | . . . . . . . Retrieved Components 3 | . . . 3 . . . Parts Scanalyzed . | . . . . . . . Part Schematics Acquired . | . . . . . . . Parts Damaged . | . . . . . . . Bothacking | -11 -10 -10 -9 -9 -7 -7 ------------ Run | Yrd Mat Min Mat Min Zio Dee Used RIF Installer . | . . . . . . . Robots Hacked . | . . . . . . . Non-combat . | . . . . . . . Combat . | . . . . . . . Robot Hacks Applied . | . . . . . . . Relay Couplers Released . | . . . . . . . Fabnet Peak Effective % . | . . . . . . . Robots Rewired . | . . . . . . . Allies Hacked . | . . . . . . . Hacks Repelled . | . . . . . . . Allies | -11 -10 -10 -9 -9 -7 -7 -------- Run | Yrd Mat Min Mat Min Zio Dee Total Allies 6 | . . . . . 6 . Largest Group 6 | . . . . . 6 4 Highest-Rated Group 348 | . . . . . 348 156 Highest-Rated Ally 96 | . . . . . 96 41 Total Orders 4 | . . . 2 1 1 . FOLLOW 1 | . . . 1 . . . EXPLORE 1 | . . . 1 . . . RETURN 2 | . . . . 1 1 . Ally Attacks 45 | . . . 28 17 . . Total Damage 175 | . . . 116 59 . . Kills 3 | . . . 2 1 . . Allies Corrupted . | . . . . . . . Allies Melted . | . . . . . . . Intel | -11 -10 -10 -9 -9 -7 -7 ------- Run | Yrd Mat Min Mat Min Zio Dee Active Infowar (turns) 2252 | . . 236 433 145 1305 133 Optics 2252 | . . 236 433 145 1305 133 Robot Analysis Total . | . . . . . . . Derelict Logs Recovered 4 | . . 2 . . 2 . Drone Launches 9 | . . . 3 5 1 . Drone Recoveries 7 | . . . 2 4 1 . Exploration | -11 -10 -10 -9 -9 -7 -7 ------------- Run | Yrd Mat Min Mat Min Zio Dee Turns Passed 3076 | 108 561 391 433 145 1305 133 Spaces Moved 2379 | 76 365 216 283 111 1143 185 Core 28 | 16 . . . . . 12 Treads . | . . . . . . . Legs 708 | 60 365 216 67 . . . Wheels . | . . . . . . . Hover 1621 | . . . 216 111 1143 151 Flight 22 | . . . . . . 22 Fastest Speed 35 | 50 120 120 116 56 56 35 Average Speed 108 | 105 120 121 130 63 109 60 Slowest Speed 250 | 120 120 190 250 116 116 120 Overloaded Moves . | . . . . . . . Propulsion Burnouts . | . . . . . . . Robots Hopped 1 | . . . . . 1 . Potential Cave-ins . | . . . . . . . Cave-ins Triggered . | . . . . . . . Exploration Rate (%) 37 | 5 41 33 24 21 88 48 Regions Visited 6 Branch Regions 4 Pre-discovered Areas 6 | . . 1 . . 5 . Known Exits Taken . | . . . . . . . Unknown Exits Taken 6 | 1 1 1 1 1 1 . Scrap Searched 3 | . . 1 . . 2 . Spaces Dug . | . . . . . . . Terrain Destroyed 28 | . 18 . . 10 . . Melee . | . . . . . . . Projectile . | . . . . . . . AOE 28 | . 18 . . 10 . . Terrain Rammed . | . . . . . . . Walls Destroyed . | . . . . . . . Machines Disabled . | . . . . . . . Actions | -11 -10 -10 -9 -9 -7 -7 --------- Run | Yrd Mat Min Mat Min Zio Dee Total 2729 | 94 432 289 343 178 1195 198 Wait 121 | . 4 20 9 50 38 . Move 2371 | 75 364 215 282 110 1140 185 Hop 1 | . . . . . 1 . Pick Up 53 | 7 14 8 11 7 5 1 Fast Attach 8 | . . . 6 . 2 . Attach 28 | 6 5 6 9 . . 2 Detach 8 | . 2 2 4 . . . Swap 18 | . 3 1 2 5 2 5 Drop 33 | . 4 3 15 2 7 2 Fire 86 | 6 36 33 4 4 . 3 Melee . | . . . . . . . Ram . | . . . . . . . Kick 1 | . . 1 . . . . Crush . | . . . . . . . Escape Stasis . | . . . . . . . Rewire . | . . . . . . . Trap 1 | . . . 1 . . . Miscellaneous . | . . . . . . . Route ------- -11/Scrapyard -10/Materials -10/Mines (discovered 2 exits: *Mat / [*Sub]) -9/Materials -9/Mines -7/Zion -7/Deep Caves History --------- Turn | Location | Event 2 | -11/Scrapyard | Met Revision 17 83 | -11/Scrapyard | Discovered new exit (range 8) 109 | -11/Scrapyard | Entered Materials 278 | -10/Materials | Discovered new exit (range 12) 323 | -10/Materials | Build established: Mutant 657 | -10/Materials | Build established: Scavenger-Mutant 670 | -10/Materials | Entered Mines 674 | -10/Mines | Found the Drone Emporium 683 | -10/Mines | Found Prototype Device 685 | -10/Mines | Identified Thief Drone Bay 779 | -10/Mines | Found a hidden stash of uninstalled traps 935 | -10/Mines | Discovered new exit (range 8) 936 | -10/Mines | Learned Materials terminal intel 951 | -10/Mines | Core integrity fell below 50% 999 | -10/Mines | Lost 3 parts (1p1n1w) 1005 | -10/Mines | Learned location of Zion (-7) 1005 | -10/Mines | Discovered new exit (range 10) 1061 | -10/Mines | Entered Materials 1061 | -9/Materials | Evolved 2 slots: Utility x2 1062 | -9/Materials | Loaded intel: 11 terminal locations 1284 | -9/Materials | Central database locked down 1359 | -9/Materials | Discovered new exit (range 18) 1487 | -9/Materials | Build established: Mutant 1494 | -9/Materials | Entered Mines 1510 | -9/Mines | Met a Derelict bent on vengeance 1635 | -9/Mines | A Derelict revealed a hidden shortcut to a safe place 1639 | -9/Mines | Entered Zion 1709 | -7/Zion | Learned Factory emergency access door positions 1710 | -7/Zion | Learned location of Quarantine (-3) 1733 | -7/Zion | Given the Hacking Drone Bay 1733 | -7/Zion | Found Prototype Device 1734 | -7/Zion | Identified Hacking Drone Bay 1893 | -7/Zion | Given A8's code to call for help 2067 | -7/Zion | Met Imprinter 2120 | -7/Zion | Acquired unknown access codes intercepted by a Zionite 2319 | -7/Zion | Learned location of Data Miner (-6) 2631 | -7/Zion | Learned location of Storage (-7) 2717 | -7/Zion | Imprinted 2719 | -7/Zion | Declared Zion's savior 2916 | -7/Zion | Opened final containment barrier to the Deep Caves 2932 | -7/Zion | Enhanced Grunt warped into view, answering call for help 2934 | -7/Zion | Enhanced Grunt warped into view, answering call for help 2934 | -7/Zion | Discovered new exit (range 3) 2934 | -7/Zion | Saw the warning signs outside the Deep Caves entrance 2944 | -7/Zion | Entered Deep Caves 2944 | -7/Deep Caves | Accompanied by 4 allies 3039 | -7/Deep Caves | Attacked by Z-Imprinter 3058 | -7/Deep Caves | Z-Facility disabled 3074 | -7/Deep Caves | Core integrity fell below 50% 3077 | -7/Deep Caves | Destroyed by Z-Imprinter with Zionite Laser-M Last Messages --------------- Acquired Lgt. Deuterium Engine. Z-Imprinter: GET AWAY FROM HERE! I've worked too hard for our future just to have you ruin everything! Airjet destroyed. 30-WRZ(o) is busy at the terminal. Airjet destroyed. Barrage Gun destroyed. Z-Facility disabled. Lgt. Deuterium Engine destroyed. Flying robots can pass through spaces occupied by others, even hostile robots. Discarded Hacking Suite. Dropped Med. Storage Unit. Airjet destroyed. Mni. Grenade Launcher destroyed. Cesium-ion Thruster destroyed. Weight Redist. System destroyed. Core Shielding destroyed. [Achievement: First Step to Greatness] Map ----- +----------------------------------------------------+ | | | | | | | | | | | | | | | | | | | | | ?????????????????????????????##??????????????????? | | ????????????????????????????# =#?????###########?? | | ????????????????????????????# !???### ?? | | ????????????????????????????# !??# ? | | ???????????? #??????######??# ### ? | | ???????????? ###### # ### ## | | ??????????? z # zzz ## | | ??????????? | | ??????????? | | ???????????# | | ???????????## | | ???????????# """"" """""" | | ???????????# """""""""""?"" | | ???????????# """""""???"""" | | ???????? """"""???"""" | | ??????????# @ """"""???" | | ???????????# """"""????""" | | ???????????# """""?????""" | | ??????????# """"""???"""" | | ??????????## """""""??""""" | | ???????????# """""""" " " | | ???????????# """"""""" | | ??????????? """""""" | | ??????????? I""""""?"" | | ??????????? """"""?"" | | ???????????? """"""?"""" | | ???????????? """""""""""" | | ???????????? z !"""""" | | ????????????? z!"""""" """ | | ???????????????? zz z"""""" """"" | | ???????????????? """ """"""" | | ???????????????? """" """"""" | | ???????????????? """ """"""" | | ????????????????? """" """"" | | ????????????????? """ """ | | ?????????????????? """ | | ?????????????????? """"""""""" | | ?????????????????? """"" """ | | ?????????????????? | | ?????????????????? | +----------------------------------------------------+ Best States ------------- Heat Dissipation 28 Energy Generation 14 Energy Capacity 265 Matter Stores 400 Matter Capacity 400 Sight Range 18 Terrain Scan Density 10 Additional Mass Support 6 Core Shielding 20 Evasion (%) 63 Targeting Accuracy 5 Offensive Hacking 10 Item Schematics ----------------- None Robot Schematics ------------------ None Fabricated ------------ Nothing Repaired ---------- Nothing Studied --------- None Alien Tech Used ----------------- None Achievements -------------- Adventurer Crack Shot First Step to Greatness For Emergencies Only Help From High Places I Have A Map? One Hack Too Far Organ Harvest Risk Taker Robot Respite Signs Are For Wimps Spot Them First Storm Trooper The More The Merrier The One There's More Where That Came From Tourist Uninvited Guest Challenges ------------ None Game ------ Seed DoorChromaticCape Manual? 0 Play Time 02:03:55 Cumulative 2.0 hours Start 2026.08.10 @ 22:17:15 End 2026.08.11 @ 18:44:09 Sessions 7 Manual Loads 0 Difficulty Rogue Special Mode None Game No. 1 Rogue 1 Adventurer 0 Explorer 0 Win Type - Total 0 Types 0/0/0/0/0/0/0/0/0/0 Lore% 2 Gallery% 2 Achievement% 3 Wizard Run 0 Options --------- Layout 2 ASCII 0 Keyboard 1 Movement Numpad Keybinds 0 Fullscreen 1 Font 16/Terminus Map View 50x49 Zoom Use 0% Tactical HUD 0 Map Filters NONE Filters NONE Steam SD RUN: 4c8f90d4-5900-4cd6-8eb3-8009a84b7610